bitfinex/quotes_SOLUSD_20220211
["timestamp","ask_amount","ask_price","bid_price","bid_amount"]
[1644616801356,0.55102547,97.508,97.46,15.3953]
[1644616801755,15.3952,97.51,97.46,15.3953]
[1644616802156,15.3952,97.51,97.452,37.34203398]
[1644616802558,15.3952,97.51,97.443,5.128]
[1644616802757,5.128,97.509,97.443,5.128]
[1644616802958,15.3997,97.49,97.443,5.128]
[1644616803257,5.128,97.489,97.443,5.128]
[1644616803457,26.05392537,97.508,97.443,5.128]
[1644616803657,26.05392537,97.508,97.442,24.4882]
[1644616803860,5.128,97.507,97.442,24.4882]
[1644616804758,15.3997,97.48,97.442,24.4882]
[1644616807462,15.3983,97.49,97.442,24.4882]
[1644616807859,28.61476577,97.489,97.431,5.13]
[1644616808063,33.74476577,97.489,97.431,5.13]
[1644616808461,15.4013,97.48,97.431,5.13]
[1644616809768,15.4013,97.48,97.421,27.8515]
[1644616809970,15.4013,97.48,97.43,15.4005]
[1644616810370,15.4013,97.48,97.431,44.5379547]
[1644616810569,15.4013,97.48,97.431,5.13]
[1644616810770,28.61476577,97.489,97.431,5.13]
[1644616810971,28.61476577,97.489,97.422,6.58371633]
[1644616811372,28.61476577,97.489,97.44,15.399]
[1644616811573,5.13,97.488,97.422,1.45371633]
[1644616811972,5.13,97.488,97.421,22.7215]
[1644616812370,28.61476577,97.489,97.422,5.13]
[1644616812776,15.3993,97.48,97.422,5.13]
[1644616812972,5.13,97.479,97.421,22.7215]
[1644616813371,5.13,97.488,97.421,22.7215]
[1644616813774,15.4017,97.47,97.421,22.7215]
[1644616813974,15.4017,97.47,97.422,5.131]
[1644616814475,15.4017,97.47,97.43,15.4004]
[1644616814674,15.4017,97.47,97.431,43.62764668]
[1644616815977,15.4017,97.47,97.43,15.4004]
[1644616816377,15.4017,97.47,97.421,22.7215]
[1644616818379,15.3999,97.48,97.43,15.3999]
[1644616818902,5.131,97.499,97.43,15.3999]
[1644616819080,14.73,97.5,97.431,27.7623]
[1644616819280,5.13,97.508,97.431,27.7623]
[1644616819881,21.71883098,97.507,97.431,27.7623]
[1644616820080,5.128,97.506,97.431,27.7623]
[1644616820784,15.3983,97.49,97.44,15.3983]
[1644616820981,5.11,97.442,97.44,15.3983]
[1644616821181,5.11,97.442,97.428,48.63894666]
[1644616821780,5.11,97.442,97.43,15.3985]
[1644616821983,5.11,97.442,97.431,5.131]
[1644616822787,15.3983,97.49,97.44,15.3968]
[1644616822987,24.8777,97.509,97.44,15.3968]
[1644616823187,5.128,97.527,97.44,15.3968]
[1644616823385,5.128,97.529,97.443,1.45371633]
[1644616823587,5.128,97.535,97.45,51.3067]
[1644616823789,5.128,97.548,97.451,24.0298]
[1644616823989,5.128,97.556,97.455,1.45371633]
[1644616824287,20.86785341,97.555,97.454,40.36597055]
[1644616824490,5.127,97.554,97.454,41.81968688]
[1644616824686,15.3902,97.54,97.46,15.392]
[1644616824887,7.78564879,97.538,97.46,15.392]
[1644616825086,5.128,97.537,97.46,15.392]
[1644616825290,5.128,97.556,97.461,7.51166791]
[1644616825489,5.128,97.556,97.47,51.2915]
[1644616825689,5.127,97.56,97.471,22.5389]
[1644616825891,5.127,97.555,97.48,15.3875]
[1644616826089,1.42672006,97.584,97.482,41.94368386]
[1644616826294,5.127,97.583,97.483,22.5389]
[1644616826510,5.35222885,97.591,97.5,51.2762]
[1644616826711,5.35222885,97.591,97.501,50.6351]
[1644616827016,5.35222885,97.591,97.51,15.3829]
[1644616827217,1.42672006,97.612,97.511,5.125]
[1644616827411,16.39424617,97.628,97.512,38.31841126]
[1644616827412,1.42672006,97.614,97.512,38.31841126]
[1644616827611,11.38235019,97.611,97.513,22.7943]
[1644616827810,11.38235019,97.611,97.513,30.30196791]
[1644616828011,11.38235019,97.615,97.513,30.30196791]
[1644616828210,11.38235019,97.615,97.514,2.38366791]
[1644616828410,5.124,97.614,97.515,5.124]
[1644616828611,5.124,97.615,97.515,5.124]
[1644616828811,5.124,97.615,97.541,42.51522675]
[1644616829317,5.124,97.627,97.542,5.124]
[1644616829515,5.124,97.627,97.543,23.9244]
[1644616829713,5.123,97.629,97.544,5.123]
[1644616829919,15.3779,97.63,97.56,15.3779]
[1644616830114,5.123,97.629,97.561,43.81596341]
[1644616830514,10.47389789,97.641,97.561,43.81596341]
[1644616830713,10.47389789,97.641,97.562,29.87]
[1644616830913,5.123,97.641,97.562,29.87]
[1644616831517,27.52495255,97.657,97.562,29.87]
[1644616831715,15.3756,97.65,97.57,15.3763]
[1644616831914,5.122,97.649,97.57,15.3763]
[1644616832715,5.122,97.658,97.571,5.122]
[1644616832917,5.122,97.648,97.571,5.122]
[1644616833115,5.121,97.672,97.571,5.122]
[1644616833314,5.122,97.647,97.571,5.122]
[1644616833515,25.52326172,97.664,97.571,5.122]
[1644616833717,5.122,97.663,97.59,15.372]
[1644616833919,5.122,97.663,97.591,46.12204361]
[1644616834520,5.121,97.669,97.591,46.12204361]
[1644616834726,5.121,97.68,97.591,46.12204361]
[1644616834923,5.121,97.68,97.592,52.4348]
[1644616835323,28.4534831,97.686,97.592,47.3138]
[1644616835525,5.12,97.685,97.6,15.3712]
[1644616835723,2.38366791,97.679,97.592,47.3138]
[1644616835923,5.121,97.678,97.592,47.3138]
[1644616836129,21.43219061,97.678,97.591,46.12204361]
[1644616836324,18.69485852,97.677,97.591,46.12204361]
[1644616836524,15.3736,97.66,97.591,46.12204361]
[1644616836724,5.121,97.659,97.591,46.12204361]
[1644616837525,5.121,97.676,97.592,5.121]
[1644616837723,28.4534831,97.686,97.6,15.3712]
[1644616837724,15.3715,97.68,97.6,15.3712]
[1644616838327,5.12,97.679,97.6,15.3712]
[1644616838526,15.3715,97.68,97.6,15.3712]
[1644616838927,15.3715,97.68,97.592,5.121]
[1644616839126,5.121,97.679,97.592,5.121]
[1644616839328,15.372,97.67,97.592,5.121]
[1644616839535,5.121,97.669,97.593,23.46]
[1644616841332,5.121,97.669,97.6,15.371]
[1644616842335,5.121,97.669,97.601,2.38366791]
[1644616842542,5.121,97.688,97.601,7.50466791]
[1644616842737,5.121,97.707,97.62,15.3663]
[1644616842937,5.12,97.709,97.621,23.0893]
[1644616843138,5.119,97.706,97.622,39.4333869]
[1644616843337,5.119,97.708,97.622,39.4333869]
[1644616843641,5.119,97.709,97.622,39.4333869]
[1644616844041,5.119,97.717,97.64,15.3647]
[1644616844237,5.119,97.738,97.64,15.3647]
[1644616844448,5.118,97.739,97.641,53.95396791]
[1644616844642,5.117,97.768,97.641,53.95396791]
[1644616844840,5.117,97.769,97.65,14.73]
[1644616845043,16.48727846,97.767,97.651,5.117]
[1644616845270,11.37027846,97.767,97.651,7.50066791]
[1644616845470,16.48727846,97.766,97.652,2.38366791]
[1644616845675,11.37027846,97.766,97.67,15.3576]
[1644616845865,16.48727846,97.765,97.671,64.42411052]
[1644616846066,11.37027846,97.765,97.672,5.116]
[1644616846265,5.116,97.764,97.672,5.116]
[1644616846467,5.116,97.779,97.672,7.49966791]
[1644616846666,5.116,97.791,97.673,25.79786791]
[1644616846866,5.115,97.793,97.674,5.116]
[1644616847165,5.115,97.817,97.691,44.22645232]
[1644616847365,5.115,97.817,97.7,14.73]
[1644616847571,5.114,97.828,97.701,5.114]
[1644616847769,16.9832206,97.816,97.701,5.114]
[1644616847968,5.114,97.815,97.701,5.114]
[1644616848169,14.73,97.8,97.701,5.114]
[1644616848369,28.92054524,97.799,97.701,5.114]
[1644616848566,44.43706412,97.799,97.701,5.114]
[1644616848767,2.38366791,97.798,97.701,5.114]
[1644616848967,5.115,97.797,97.701,5.114]
[1644616849166,19.71455269,97.797,97.701,5.114]
[1644616849367,2.38366791,97.796,97.701,5.114]
[1644616849566,5.115,97.795,97.701,5.114]
[1644616849768,4.84795696,97.779,97.701,5.114]
[1644616849970,5.115,97.778,97.701,5.114]
[1644616850171,5.115,97.778,97.691,44.22645232]
[1644616850370,7.49866791,97.778,97.691,44.22645232]
[1644616851374,5.115,97.778,97.691,44.22645232]
[1644616851770,15.3568,97.77,97.691,44.22645232]
[1644616851972,5.115,97.778,97.692,5.116]
[1644616852174,5.115,97.778,97.692,29.838]
[1644616853073,15.3567,97.77,97.692,5.116]
[1644616853273,5.116,97.769,97.692,5.116]
[1644616853473,14.73,97.76,97.692,5.116]
[1644616853876,5.116,97.759,97.692,5.116]
[1644616854174,15.3602,97.75,97.692,5.116]
[1644616854375,5.116,97.749,97.692,5.116]
[1644616854573,2.38366791,97.749,97.692,5.116]
[1644616854773,5.116,97.748,97.692,5.116]
[1644616854973,7.49966791,97.748,97.692,5.116]
[1644616855175,2.38366791,97.747,97.692,5.116]
[1644616855377,5.116,97.746,97.692,5.116]
[1644616855774,4.84795696,97.739,97.692,5.116]
[1644616856175,5.116,97.738,97.692,5.116]
[1644616856376,5.116,97.738,97.645,23.7805]
[1644616856975,5.116,97.738,97.646,43.85085049]
[1644616857575,15.364,97.73,97.646,43.85085049]
[1644616857776,15.364,97.73,97.647,5.118]
[1644616859577,5.116,97.738,97.65,15.3618]
[1644616859777,5.118,97.749,97.651,5.118]
[1644616859977,5.118,97.737,97.651,5.118]
[1644616860180,5.117,97.748,97.647,5.117]
[1644616860378,15.3608,97.75,97.647,5.117]
[1644616860581,15.3608,97.75,97.66,15.3599]
[1644616860779,15.3608,97.75,97.662,36.76984845]
[1644616860977,15.3608,97.75,97.663,5.117]
[1644616861180,5.117,97.769,97.663,5.117]
[1644616861982,5.117,97.769,97.67,15.3584]
[1644616862180,5.117,97.769,97.671,5.116]
[1644616862379,5.117,97.769,97.664,5.116]
[1644616862581,5.117,97.769,97.663,5.116]
[1644616863083,5.117,97.769,97.69,15.3555]
[1644616863382,5.116,97.779,97.69,15.3555]
[1644616863580,21.1864299,97.786,97.691,43.21482166]
[1644616863980,5.115,97.785,97.691,43.21482166]
[1644616864683,15.3549,97.78,97.692,45.5227]
[1644616864881,5.115,97.779,97.692,45.5227]
[1644616865581,5.115,97.779,97.7,15.3545]
[1644616865783,5.115,97.779,97.701,5.115]
[1644616866384,15.3561,97.77,97.701,5.115]
[1644616866582,5.115,97.769,97.691,43.21482166]
[1644616866987,7.49866791,97.769,97.691,43.21482166]
[1644616867283,2.38366791,97.768,97.691,43.21482166]
[1644616867486,15.358,97.76,97.691,43.21482166]
[1644616867690,5.116,97.767,97.691,43.21482166]
[1644616867887,5.116,97.769,97.692,5.116]
[1644616868088,5.115,97.778,97.691,43.21482166]
[1644616868292,5.116,97.768,97.691,43.21482166]
[1644616869690,15.3573,97.76,97.691,43.21482166]
[1644616869890,5.116,97.759,97.691,43.21482166]
[1644616870691,5.116,97.759,97.68,15.3557]
[1644616870895,15.3592,97.75,97.661,51.2973]
[1644616871292,7.50066791,97.749,97.64,51.1974]
[1644616871497,7.50066791,97.749,97.632,5.117]
[1644616871693,21.26799424,97.747,97.634,45.70295659]
[1644616871894,5.118,97.746,97.635,5.118]
[1644616872195,15.3621,97.73,97.651,40.14689674]
[1644616872693,15.3621,97.73,97.652,5.118]
[1644616873796,15.3621,97.73,97.66,15.3606]
[1644616873995,15.3621,97.73,97.652,5.118]
[1644616874196,5.118,97.729,97.652,5.118]
[1644616874396,5.118,97.729,97.651,40.14689674]
[1644616875197,15.3621,97.73,97.652,5.118]
[1644616876101,5.118,97.729,97.652,5.118]
[1644616876298,15.3633,97.72,97.652,5.118]
[1644616876499,0.36535291,97.719,97.651,40.14689674]
[1644616876700,5.48335291,97.719,97.651,40.14689674]
[1644616877000,2.38366791,97.718,97.651,40.14689674]
[1644616877204,5.118,97.717,97.651,40.14689674]
[1644616877599,5.118,97.718,97.651,40.14689674]
[1644616878704,15.3657,97.71,97.651,40.14689674]
[1644616878921,5.118,97.709,97.651,40.14689674]
[1644616881231,15.3659,97.7,97.633,24.4154]
[1644616881427,5.119,97.699,97.633,24.4154]
[1644616881826,15.3659,97.7,97.634,5.119]
[1644616882226,5.119,97.699,97.635,42.0268613]
[1644616882829,5.119,97.699,97.635,41.7270149]
[1644616884330,15.3659,97.7,97.635,41.7270149]
[1644616887033,24.4788863,97.699,97.635,41.7270149]
[1644616887233,5.119,97.698,97.635,41.7270149]
[1644616888236,5.119,97.699,97.635,41.7270149]
[1644616889542,15.3659,97.7,97.636,5.119]
[1644616890039,15.3659,97.7,97.635,41.7270149]
[1644616891346,5.119,97.699,97.635,41.7270149]
[1644616893746,15.3659,97.7,97.635,41.7270149]
[1644616894147,15.3659,97.7,97.64,15.3649]
[1644616897352,5.119,97.699,97.64,15.3649]
[1644616898572,5.119,97.717,97.641,5.119]
[1644616898772,1.42672006,97.739,97.66,15.3597]
[1644616898971,1.42672006,97.739,97.661,5.117]
[1644616899272,1.42672006,97.743,97.662,37.16629801]
[1644616899676,1.42672006,97.748,97.663,5.117]
[1644616900075,1.42672006,97.749,97.664,23.3168]
[1644616900275,1.42672006,97.749,97.665,5.117]
[1644616900477,5.117,97.748,97.665,5.117]
[1644616900675,15.3592,97.74,97.68,15.3582]
[1644616900878,15.3592,97.74,97.682,38.97357383]
[1644616901076,5.117,97.739,97.682,38.97357383]
[1644616902677,5.117,97.739,97.69,15.3579]
[1644616904079,15.3592,97.74,97.69,15.3579]
[1644616906482,15.3592,97.74,97.682,38.97357383]
[1644616906682,15.3604,97.73,97.682,38.97357383]
[1644616907088,5.117,97.729,97.682,38.97357383]
[1644616908186,15.3592,97.74,97.682,38.97357383]
[1644616908383,5.117,97.739,97.682,38.97357383]
[1644616908784,5.117,97.739,97.69,15.3585]
[1644616908983,15.3592,97.74,97.69,15.3585]
[1644616909186,5.116,97.739,97.69,15.3585]
[1644616910084,24.6215,97.757,97.681,23.9744]
[1644616910285,5.117,97.738,97.681,23.9744]
[1644616910487,51.2035,97.75,97.681,23.9744]
[1644616910685,5.116,97.749,97.681,23.9744]
[1644616910888,16.65333238,97.749,97.681,23.9744]
[1644616911086,16.65333238,97.749,97.682,45.95879192]
[1644616911286,15.3602,97.73,97.682,45.95879192]
[1644616911485,5.117,97.729,97.682,45.95879192]
[1644616912091,15.3602,97.73,97.682,45.95879192]
[1644616912288,15.3602,97.73,97.681,23.9744]
[1644616913289,15.3602,97.73,97.682,37.69708495]
[1644616913492,15.3591,97.74,97.682,37.69708495]
[1644616914693,15.3591,97.74,97.69,15.3585]
[1644616915993,5.116,97.739,97.69,15.3585]
[1644616917393,15.3591,97.74,97.69,15.3585]
[1644616917594,5.116,97.739,97.69,15.3585]
[1644616920397,5.116,97.739,97.683,5.116]
[1644616920594,15.3641,97.73,97.683,5.116]
[1644616920998,5.117,97.729,97.683,5.116]
[1644616921397,5.117,97.737,97.683,5.116]
[1644616921598,2.38366791,97.729,97.683,5.116]
[1644616922099,5.117,97.728,97.683,5.116]
[1644616922701,15.365,97.72,97.683,5.116]
[1644616923101,5.117,97.719,97.683,5.116]
[1644616923304,5.117,97.729,97.683,5.116]
[1644616923701,15.3641,97.71,97.683,5.116]
[1644616923926,5.117,97.709,97.683,5.116]
[1644616926103,15.3646,97.7,97.683,5.116]
[1644616926904,5.117,97.721,97.683,5.116]
[1644616927105,5.117,97.729,97.652,5.117]
[1644616927307,5.118,97.72,97.652,5.117]
[1644616927507,15.3636,97.71,97.66,15.3636]
[1644616929208,15.3636,97.71,97.652,5.117]
[1644616929209,5.118,97.709,97.652,5.117]
[1644616929410,15.3685,97.7,97.652,5.117]
[1644616929611,5.118,97.699,97.652,5.117]
[1644616929809,4.618,97.699,97.652,5.117]
[1644616930017,2.38366791,97.698,97.652,5.117]
[1644616930211,5.119,97.697,97.652,5.117]
[1644616930610,2.38366791,97.696,97.652,5.117]
[1644616930810,15.3706,97.69,97.652,5.117]
[1644616931215,7.50266791,97.689,97.652,5.117]
[1644616931639,7.50266791,97.689,97.583,23.2792]
[1644616931640,70.38366791,97.688,97.599,5.119]
[1644616931843,1.42672006,97.683,97.593,1.45371633]
[1644616932037,14.73,97.67,97.587,39.15443518]
[1644616932238,15.3757,97.65,97.587,39.15443518]
[1644616932541,18.97045063,97.649,97.587,39.15443518]
[1644616933038,5.122,97.648,97.587,39.15443518]
[1644616933736,15.3755,97.64,97.583,23.2792]
[1644616933937,5.122,97.639,97.583,23.2792]
[1644616934337,5.122,97.639,97.574,23.9887]
[1644616934548,5.122,97.648,97.574,23.9887]
[1644616934739,5.122,97.655,97.574,23.9887]
[1644616934938,24.2851,97.669,97.574,23.9887]
[1644616935143,4.621,97.668,97.575,24.6548]
[1644616935439,20.99673546,97.667,97.576,44.75999186]
[1644616935739,5.121,97.666,97.576,44.75999186]
[1644616936138,7.50466791,97.666,97.576,44.75999186]
[1644616936337,2.38366791,97.665,97.576,44.75999186]
[1644616936538,5.121,97.664,97.576,44.75999186]
[1644616936738,15.3739,97.65,97.576,44.75999186]
[1644616936938,7.96161314,97.649,97.576,44.75999186]
[1644616937338,5.122,97.649,97.576,44.75999186]
[1644616938539,22.42187317,97.653,97.576,44.75999186]
[1644616938739,15.3766,97.63,97.576,44.75999186]
[1644616938938,5.122,97.652,97.576,44.75999186]
[1644616939746,15.3751,97.64,97.576,44.75999186]
[1644616939945,5.122,97.639,97.576,44.75999186]
[1644616940349,5.122,97.652,97.576,44.75999186]
[1644616940744,2.38366791,97.651,97.576,44.75999186]
[1644616940944,5.122,97.65,97.576,44.75999186]
[1644616941345,7.50566791,97.65,97.576,44.75999186]
[1644616941547,2.38366791,97.65,97.576,44.75999186]
[1644616941749,5.122,97.649,97.576,44.75999186]
[1644616941953,15.4021,97.656,97.576,44.75999186]
[1644616942149,15.4021,97.656,97.577,5.122]
[1644616942551,15.3738,97.65,97.58,15.3743]
[1644616942854,15.3738,97.65,97.581,5.122]
[1644616943049,15.3738,97.65,97.58,15.3743]
[1644616943050,5.122,97.649,97.58,15.3743]
[1644616944451,15.3738,97.65,97.58,15.3743]
[1644616946052,15.3738,97.65,97.581,5.122]
[1644616947254,5.122,97.649,97.581,5.122]
[1644616947455,15.3751,97.64,97.581,5.122]
[1644616948859,5.122,97.639,97.58,15.3743]
[1644616949662,5.122,97.639,97.576,44.75999186]
[1644616952888,5.122,97.639,97.58,15.3752]
[1644616953290,18.93052082,97.638,97.58,15.3752]
[1644616953590,5.122,97.637,97.58,15.3752]
[1644616954391,5.122,97.639,97.58,15.3752]
[1644616955094,18.27103408,97.638,97.58,15.3752]
[1644616955291,15.3763,97.63,97.58,15.3752]
[1644616956994,5.122,97.629,97.58,15.3752]
[1644616957495,0.7819239,97.628,97.58,15.3752]
[1644616957694,5.122,97.627,97.574,23.9887]
[1644616958096,5.122,97.629,97.574,23.9887]
[1644616958796,15.3763,97.63,97.574,23.9887]
[1644616958797,15.3763,97.63,97.575,41.92416769]
[1644616958996,15.3763,97.63,97.58,15.3754]
[1644616960497,15.3763,97.63,97.58,16.82911633]
[1644616962799,15.3763,97.63,97.581,1.45371633]
[1644616963004,15.3745,97.64,97.59,15.3742]
[1644616963202,5.122,97.658,97.59,15.3742]
[1644616963411,5.122,97.67,97.596,1.45371633]
[1644616963703,5.121,97.668,97.597,49.54278319]
[1644616963902,5.121,97.669,97.599,1.45371633]
[1644616964100,5.12,97.68,97.599,1.45371633]
[1644616964302,15.3696,97.67,97.61,15.3702]
[1644616964499,5.12,97.669,97.611,23.4849]
[1644616965403,5.12,97.669,97.612,35.75597555]
[1644616965800,5.12,97.669,97.62,15.3697]
[1644616966003,15.3709,97.66,97.612,35.75597555]
[1644616966404,5.121,97.659,97.612,35.75597555]
[1644616966602,15.3709,97.66,97.612,35.75597555]
[1644616966801,5.121,97.68,97.612,35.75597555]
[1644616967001,15.3701,97.67,97.612,35.75597555]
[1644616967202,5.12,97.669,97.612,35.75597555]
[1644616967603,18.32784078,97.676,97.612,35.75597555]
[1644616967803,5.12,97.675,97.612,35.75597555]
[1644616968003,15.371,97.66,97.612,35.75597555]
[1644616968204,5.12,97.68,97.612,35.75597555]
[1644616968404,5.12,97.674,97.612,35.75597555]
[1644616968607,5.12,97.68,97.612,35.75597555]
[1644616969005,21.44969683,97.679,97.612,35.75597555]
[1644616969204,5.12,97.678,97.612,35.75597555]
[1644616969705,15.3699,97.67,97.62,15.3702]
[1644616969904,5.12,97.669,97.62,15.3702]
[1644616970105,5.12,97.678,97.62,15.3702]
[1644616970914,15.3711,97.66,97.612,35.75597555]
[1644616975909,15.3711,97.66,97.62,15.3705]
[1644616981019,15.3698,97.67,97.62,15.3705]
[1644616981625,5.12,97.669,97.62,15.3705]
[1644616982018,5.12,97.672,97.62,15.3705]
[1644616982718,15.371,97.66,97.62,15.3705]
[1644616989029,5.12,97.659,97.62,15.3705]
[1644616990331,15.371,97.66,97.62,15.3705]
[1644616991849,5.12,97.659,97.62,15.3705]
[1644616992052,15.371,97.66,97.62,15.3705]
[1644616993454,15.3697,97.67,97.62,15.3705]
[1644616993956,15.3697,97.67,97.621,5.12]
[1644616994153,15.3697,97.67,97.63,15.3697]
[1644616994352,19.94835162,97.669,97.63,15.3697]
[1644616994551,15.3704,97.66,97.63,15.3697]
[1644616995052,15.3704,97.66,97.62,15.3708]
[1644616995652,15.3704,97.66,97.611,23.4849]
[1644616995851,15.3733,97.65,97.611,23.4849]
[1644616996253,5.121,97.649,97.6,1.45371633]
[1644616996559,5.121,97.666,97.594,1.45371633]
[1644616996752,3.88799698,97.647,97.591,1.45371633]
[1644616996953,15.3752,97.64,97.59,1.45371633]
[1644616997753,15.3752,97.64,97.589,1.45371633]
[1644616997952,15.3752,97.64,97.586,1.45371633]
[1644616998155,5.122,97.639,97.586,1.45371633]
[1644616998355,15.3771,97.63,97.586,1.45371633]
[1644616998754,5.122,97.629,97.586,1.45371633]
[1644616998953,5.122,97.629,97.584,24.18611633]
[1644616999160,5.122,97.629,97.584,22.7324]
[1644616999360,15.3762,97.63,97.584,22.7324]
[1644616999562,5.122,97.629,97.584,22.7324]
[1644616999759,15.3762,97.63,97.584,22.7324]
[1644617003164,5.122,97.629,97.584,22.7324]
[1644617003565,5.122,97.629,97.59,15.3748]
[1644617003766,15.3762,97.63,97.59,15.3748]
[1644617004566,15.3747,97.64,97.59,15.3748]
[1644617004764,15.3747,97.64,97.59,15.3988]
[1644617007270,5.122,97.639,97.59,15.3988]
[1644617007474,5.122,97.639,97.59,15.3748]
[1644617008272,15.373,97.65,97.6,15.373]
[1644617008672,15.373,97.65,97.6,15.397]
[1644617009274,5.121,97.667,97.62,15.3698]
[1644617009485,5.121,97.677,97.62,15.3698]
[1644617009677,5.12,97.679,97.62,15.3698]
[1644617009882,5.12,97.683,97.62,15.3698]
[1644617010402,15.3704,97.67,97.61,0.024]
[1644617010603,5.12,97.669,97.61,0.024]
[1644617011000,5.12,97.679,97.61,0.024]
[1644617011603,15.3724,97.66,97.61,15.396]
[1644617012802,15.3724,97.66,97.611,5.121]
[1644617013003,15.3724,97.66,97.62,15.3706]
[1644617013903,15.3724,97.66,97.621,42.78325495]
[1644617014104,5.12,97.659,97.621,42.78325495]
[1644617015205,15.3724,97.66,97.621,42.78325495]
[1644617015805,5.12,97.659,97.621,42.78325495]
[1644617016003,15.3724,97.66,97.621,42.78325495]
[1644617017611,5.12,97.659,97.621,42.78325495]
[1644617019211,15.3696,97.67,97.621,42.78325495]
[1644617019513,15.3696,97.67,97.622,22.5732]
[1644617020809,15.3696,97.67,97.63,15.3693]
[1644617023211,15.368,97.68,97.63,15.3693]
[1644617023411,5.12,97.679,97.63,15.3693]
[1644617025813,15.3696,97.67,97.622,22.5732]
[1644617026214,5.12,97.669,97.622,22.5732]
[1644617026915,5.12,97.677,97.622,22.5732]
[1644617028416,2.38366791,97.678,97.622,22.5732]
[1644617028616,2.38366791,97.678,97.621,42.78325495]
[1644617028918,5.12,97.677,97.621,42.78325495]
[1644617029118,5.12,97.677,97.622,24.4988]
[1644617029821,15.3697,97.67,97.622,24.4988]
[1644617030218,5.12,97.669,97.622,24.4988]
[1644617030819,15.3707,97.66,97.622,24.4988]
[1644617032427,15.3698,97.67,97.622,24.4988]
[1644617032626,15.3698,97.67,97.623,5.12]
[1644617033227,5.12,97.685,97.63,15.3689]
[1644617033425,15.3681,97.68,97.63,15.3689]
[1644617034226,5.12,97.707,97.63,15.3689]
[1644617034430,5.12,97.707,97.65,15.3637]
[1644617034431,2.38366791,97.705,97.65,15.3637]
[1644617034626,5.119,97.713,97.651,23.6769]
[1644617034827,15.3637,97.71,97.651,70.5531736]
[1644617035226,5.118,97.709,97.651,46.8762736]
[1644617035426,7.50166791,97.709,97.651,46.8762736]
[1644617035630,2.38366791,97.708,97.651,46.8762736]
[1644617035829,5.118,97.707,97.651,46.8762736]
[1644617036230,15.367,97.7,97.651,46.8762736]
[1644617036428,15.367,97.7,97.66,15.3651]
[1644617037932,5.118,97.699,97.66,15.3651]
[1644617039334,15.3637,97.71,97.66,15.3651]
[1644617041635,5.118,97.709,97.66,15.3651]
[1644617043237,15.365,97.7,97.66,15.3651]
[1644617043637,5.118,97.699,97.66,15.3651]
[1644617044038,5.118,97.699,97.652,23.8499]
[1644617045248,15.365,97.7,97.652,23.8499]
[1644617045442,15.365,97.7,97.66,15.365]
[1644617045942,15.364,97.71,97.66,15.365]
[1644617046143,5.118,97.709,97.66,15.365]
[1644617046643,24.2184,97.715,97.66,15.365]
[1644617047047,5.118,97.73,97.66,15.365]
[1644617047246,5.117,97.739,97.68,15.3584]
[1644617047447,5.116,97.748,97.681,5.116]
[1644617047647,5.116,97.749,97.681,5.116]
[1644617047852,5.116,97.747,97.671,24.5999]
[1644617048049,5.117,97.748,97.672,42.58694193]
[1644617048250,5.117,97.749,97.673,5.117]
[1644617048848,5.117,97.749,97.7,15.3575]